bitfinex/quotes_ETHUSD_20240729
["timestamp","ask_amount","ask_price","bid_price","bid_amount"]
[1722237426751,1.54166259,3380.5,3380.2,2.36672]
[1722237426953,1.54166259,3380.5,3380.3,2.36664]
[1722237427152,1.54166259,3380.6,3380.3,2.36664]
[1722237427347,1.54166259,3380.5,3380.3,2.36664]
[1722237427705,1.54166259,3380.5,3380.2,2.3667]
[1722237429187,1.54357001,3380.5,3380.2,2.3667]
[1722237429386,1.54357001,3380.5,3380.3,2.36664]
[1722237429587,1.54358585,3380.5,3380.3,2.36664]
[1722237429788,1.54358585,3380.5,3380.4,2.36658]
[1722237430283,1.54358585,3380.5,3380.2,2.3667]
[1722237432467,1.54384925,3380.5,3380.2,2.3667]
[1722237432667,1.54384925,3380.5,3380.3,2.36664]
[1722237433088,1.54388348,3380.5,3380.3,2.36664]
[1722237434714,1.54388348,3380.5,3380.1,2.36673]
[1722237434890,1.54388348,3380.4,3380.1,2.36673]
[1722237435639,3.13228402,3380.7,3380.1,2.36673]
[1722237435940,1.54487078,3380.4,3380.2,2.36672]
[1722237437200,1.54487078,3380.4,3380.1,2.36673]
[1722237437405,1.54487078,3380.4,3380.2,2.3667]
[1722237438950,1.54525509,3380.4,3380.2,2.3667]
[1722237440932,1.54525509,3380.3,3380.2,2.3667]
[1722237442186,1.5460887,3380.3,3380.2,2.3667]
[1722237442444,1.5460887,3380.7,3380.6,2.36644]
[1722237442777,2.16452419,3381.3,3381.0,2.36616]
[1722237442778,1.54675501,3381.3,3381.0,2.36616]
[1722237443022,1.54675501,3381.6,3381.4,2.36588]
[1722237443225,1.54675501,3381.6,3381.4,3.43988]
[1722237443398,1.54675501,3381.6,3381.2,2.36596]
[1722237443599,1.54675501,3381.5,3381.3,2.36594]
[1722237444216,1.54675501,3381.6,3381.4,2.36588]
[1722237444521,1.54488053,3381.8,3381.6,2.36573]
[1722237445220,1.54477931,3381.8,3381.7,2.36567]
[1722237445427,1.54477931,3381.9,3381.7,2.36567]
[1722237445921,1.54477931,3382.0,3381.8,2.3656]
[1722237446222,1.54477931,3382.1,3381.8,2.3656]
[1722237446427,1.54477931,3382.1,3381.6,3.43969]
[1722237447131,1.54477931,3382.0,3381.6,3.43969]
[1722237447620,2.36533,3382.2,3381.6,3.43969]
[1722237447621,1.54477931,3382.1,3381.6,3.43969]
[1722237448024,1.54477931,3382.0,3381.6,1.074]
[1722237448226,2.36555,3381.9,3381.4,1.074]
[1722237448401,2.36569,3381.7,3381.1,9.79605]
[1722237448789,2.36569,3381.7,3381.1,7.43]
[1722237448790,2.36579,3381.6,3381.1,7.43]
[1722237449042,0.05920198,3381.7,3381.1,7.43]
[1722237449195,2.36565,3381.8,3381.1,9.79604]
[1722237449196,3.96779924,3381.8,3381.1,9.79604]
[1722237449500,2.36569,3381.7,3381.1,9.79604]
[1722237449906,3.96723563,3381.7,3381.1,9.79604]
[1722237450117,2.36588,3381.4,3381.1,7.43]
[1722237450344,2.4367,3381.5,3381.1,7.43]
[1722237450637,4.03824563,3381.5,3381.1,7.43]
[1722237451219,2.36595,3381.3,3381.1,7.43]
[1722237451615,3.97972267,3381.5,3381.1,7.43]
[1722237451821,4.80251,3381.5,3381.1,7.43]
[1722237452013,6.34553267,3381.5,3381.1,7.43]
[1722237452214,6.34564982,3381.5,3381.1,7.43]
[1722237452826,2.36589,3381.4,3381.1,7.43]
[1722237453809,2.4367,3381.5,3381.1,7.43]
[1722237454213,2.4367,3381.5,3380.9,2.36623]
[1722237454214,4.80252,3381.5,3380.9,2.36623]
[1722237454939,6.34565155,3381.5,3380.9,2.36623]
[1722237455310,4.80252,3381.5,3380.9,2.36623]
[1722237455836,6.34565155,3381.5,3380.9,2.36623]
[1722237456343,2.36613,3381.1,3380.7,7.43]
[1722237457337,2.36616,3381.0,3380.7,7.43]
[1722237458451,2.2917,3380.9,3380.7,7.43]
[1722237459343,1.54303983,3381.2,3380.7,9.79632]
[1722237459344,3.95093983,3381.2,3380.7,9.79632]
[1722237459843,4.77392,3381.2,3380.7,9.79632]
[1722237460225,6.31695983,3381.2,3380.7,2.36632]
[1722237460760,4.77392,3381.2,3380.7,2.36632]
[1722237462018,4.77392,3381.2,3380.6,2.36643]
[1722237462368,6.31727058,3381.2,3380.6,2.36643]
[1722237462667,2.4079,3381.2,3380.7,2.36633]
[1722237463779,2.4079,3381.2,3380.8,2.3663]
[1722237464072,3.90946779,3381.4,3380.8,2.3663]
[1722237464414,3.90952475,3381.4,3380.8,2.3663]
[1722237464631,1.54359363,3381.3,3380.8,2.3663]
[1722237465045,3.90954363,3381.3,3380.8,2.3663]
[1722237465576,1.54359363,3381.2,3380.5,2.36647]
[1722237465872,1.54359363,3381.2,3380.6,2.36643]
[1722237466219,3.90964363,3381.2,3380.6,2.36643]
[1722237467157,3.90964363,3381.2,3380.7,2.36636]
[1722237467363,2.36611,3381.1,3380.5,2.36646]
[1722237467717,2.36611,3381.1,3380.6,2.36643]
[1722237468234,3.90970363,3381.1,3380.6,2.36643]
[1722237468431,2.36611,3381.1,3380.6,2.36643]
[1722237468850,2.36611,3381.1,3380.4,2.36655]
[1722237469023,3.90970363,3381.1,3380.4,2.36655]
[1722237469718,3.90970363,3381.1,3380.4,2.36652]
[1722237469916,3.90970363,3381.1,3380.5,2.36646]
[1722237470146,2.475,3381.0,3380.5,2.36646]
[1722237470355,2.475,3381.0,3380.6,2.36644]
[1722237470517,2.475,3381.0,3380.7,2.36636]
[1722237470718,1.54359363,3381.2,3380.8,2.36625]
[1722237470918,2.2562,3381.3,3380.8,2.36625]
[1722237470919,3.79979363,3381.3,3380.8,2.36625]
[1722237471168,2.67538454,3381.5,3380.3,7.43]
[1722237471169,1.54359363,3381.4,3381.2,3.43896]
[1722237471349,0.30957454,3381.5,3381.3,1.073]
[1722237471736,0.30957454,3381.5,3381.3,3.43895]
[1722237471937,0.30957454,3381.5,3381.3,3.43894]
[1722237473170,0.30957454,3381.5,3381.3,1.073]
[1722237473368,0.30957454,3381.5,3381.1,2.36608]
[1722237474181,0.30957454,3381.5,3380.8,7.43]
[1722237474454,2.36597,3381.3,3380.8,7.43]
[1722237474628,3.90950555,3381.3,3380.8,9.7963]
[1722237475323,1.54353555,3381.3,3380.9,2.36619]
[1722237475655,3.97113555,3381.4,3380.8,7.43]
[1722237476035,3.97113555,3381.4,3381.0,2.36615]
[1722237476858,3.97113555,3381.4,3380.8,9.79624]
[1722237477155,2.4276,3381.4,3380.9,2.36621]
[1722237477457,3.97165143,3381.4,3381.0,2.36615]
[1722237477768,2.36615,3381.1,3380.8,7.43]
[1722237478059,1.54405143,3381.1,3380.6,2.36643]
[1722237478742,1.54405143,3381.1,3380.8,2.36629]
[1722237478942,1.54405143,3381.3,3380.8,2.36625]
[1722237479432,1.54405143,3381.2,3380.8,2.36625]
[1722237479960,1.54405143,3381.2,3380.6,2.3664]
[1722237480548,1.544604,3381.1,3380.6,2.3664]
[1722237480973,1.544604,3381.2,3380.7,2.36636]
[1722237481271,1.54456737,3381.2,3380.3,7.43]
[1722237481468,1.54456737,3381.2,3380.8,2.36625]
[1722237482727,4.7935,3381.4,3380.8,2.36625]
[1722237482924,1.54493483,3381.2,3380.8,2.36625]
[1722237483378,1.54503593,3381.2,3380.6,2.36639]
[1722237483665,1.54503593,3381.1,3380.7,2.36636]
[1722237483831,1.54503593,3381.2,3380.7,2.36636]
[1722237484174,1.54503593,3381.2,3380.6,2.36639]
[1722237484175,1.54503593,3381.1,3380.6,2.36639]
[1722237485078,1.54503593,3381.1,3380.7,2.36636]
[1722237485457,1.54503593,3381.0,3380.7,2.36636]
[1722237485966,3.39148492,3381.3,3380.7,2.36636]
[1722237486261,1.54542795,3381.0,3380.5,2.36645]
[1722237486466,1.54542795,3381.0,3380.4,2.36651]
[1722237486665,1.54542795,3381.0,3380.5,2.36647]
[1722237487034,1.54542795,3381.0,3380.5,2.36645]
[1722237487662,1.54542795,3381.0,3380.6,2.36643]
[1722237488338,1.54542795,3380.9,3380.6,2.36643]
[1722237489156,1.54632891,3380.9,3380.6,2.36643]
[1722237489534,1.54632891,3380.9,3380.7,2.36636]
[1722237489769,2.36603,3381.2,3380.7,2.36636]
[1722237489941,1.54650911,3380.9,3380.7,2.36636]
[1722237490843,1.54650911,3381.0,3380.7,2.36636]
[1722237491065,1.54650911,3380.9,3380.7,2.36636]
[1722237491873,1.54650911,3380.8,3380.7,2.36636]
[1722237492575,1.54707675,3380.8,3380.5,2.3665]
[1722237492747,1.54707675,3380.7,3380.5,2.3665]
[1722237493144,1.54708397,3380.7,3380.5,2.3665]
[1722237493837,1.54708397,3380.7,3380.5,4.73297]
[1722237494037,1.54708397,3380.7,3380.6,2.36644]
[1722237494282,2.36611,3381.1,3380.6,2.36644]
[1722237494439,1.54800422,3380.7,3380.6,2.36644]
[1722237495265,1.54868516,3380.7,3380.6,3.43944]
[1722237495577,1.54868516,3380.7,3380.6,5.80588]
[1722237495784,1.54886104,3380.8,3380.7,2.36637]
[1722237496080,1.54886104,3380.8,3380.7,3.43937]
[1722237496583,1.54886104,3380.8,3380.7,1.073]
[1722237496881,1.85863325,3381.1,3380.7,3.43936]
[1722237497106,1.54881512,3380.8,3380.7,3.43936]
[1722237497386,2.3584,3380.8,3380.7,1.073]
[1722237503031,1.85945343,3380.9,3380.7,1.073]
[1722237504978,1.85859674,3380.9,3380.7,1.073]
[1722237505462,1.85833048,3380.9,3380.7,1.073]
[1722237506020,1.85833048,3380.9,3380.7,1.057]
[1722237508664,1.85712459,3380.9,3380.7,1.057]
[1722237509077,1.85712459,3381.0,3380.7,1.057]
[1722237509337,1.85712459,3380.9,3380.7,1.057]
[1722237510863,1.85712459,3381.0,3380.9,2.36623]
[1722237511064,1.54807222,3381.2,3381.0,2.36616]
[1722237511276,1.54807222,3381.3,3381.1,3.43909]
[1722237511605,2.3131,3381.8,3381.3,2.36595]
[1722237511606,1.54807222,3381.4,3381.3,2.36595]
[1722237511775,1.85797186,3381.7,3381.4,2.36585]
[1722237512103,1.85797186,3381.6,3381.5,1.073]
[1722237512602,1.85797186,3381.6,3381.3,3.43895]
[1722237512603,1.85784381,3381.6,3381.3,3.43895]
[1722237512804,1.54815399,3381.4,3381.3,3.43895]
[1722237512979,1.85784381,3381.7,3381.3,3.43895]
[1722237513596,1.85769364,3381.7,3381.3,3.43895]
[1722237514003,1.85769364,3381.6,3381.1,3.43908]
[1722237514176,2.7777225,3381.7,3381.1,3.43908]
[1722237514177,1.54779216,3381.2,3381.1,3.43908]
[1722237514383,1.54779216,3381.2,3381.0,3.43916]
[1722237514581,1.54751613,3381.1,3381.0,3.43916]
[1722237514787,1.54751613,3381.2,3381.0,3.43916]
[1722237514990,1.14815754,3381.5,3381.0,3.43916]
[1722237515169,1.54744715,3381.1,3381.0,3.43916]
[1722237515691,1.85693658,3381.2,3380.9,7.43]
[1722237515999,1.91613856,3381.2,3380.9,7.43]
[1722237516505,1.85693658,3381.2,3380.9,7.43]
[1722237516715,1.85693658,3381.1,3380.8,1.073]
[1722237516999,1.85693658,3381.1,3380.7,3.43936]
[1722237517204,1.54760815,3380.8,3380.7,3.43936]
[1722237517604,1.54760815,3380.8,3380.5,2.36645]
[1722237517784,1.54754255,3380.8,3380.5,3.43945]
[1722237518192,2.3004,3381.0,3380.5,3.43945]
[1722237518404,1.54803068,3380.7,3380.5,3.43945]
[1722237519772,1.54803068,3380.7,3380.6,2.36644]
[1722237520504,1.54803068,3380.7,3380.5,1.073]
[1722237520505,1.85763682,3380.9,3380.5,3.43951]
[1722237520710,1.54847716,3380.6,3380.5,3.43951]
[1722237521226,1.54847716,3380.6,3380.5,1.073]
[1722237521377,5.64230678,3381.0,3380.5,1.073]
[1722237521577,1.5482962,3380.6,3380.5,1.073]
[1722237522133,1.54838298,3380.6,3380.5,1.073]
[1722237524130,1.54838298,3380.6,3380.5,3.43951]
[1722237524131,1.54850194,3380.6,3380.5,3.43951]
[1722237524492,2.659044,3380.9,3380.5,3.43951]
[1722237524681,2.65908984,3380.9,3380.5,3.43951]
[1722237525010,1.54854303,3380.6,3380.5,3.43951]
[1722237525382,1.54854303,3380.6,3380.5,1.073]
[1722237525579,0.73255798,3380.8,3380.5,1.073]
[1722237525784,2.59080614,3380.8,3380.5,1.073]
[1722237527483,2.59080614,3380.8,3380.5,3.43951]
[1722237527916,0.73255798,3380.8,3380.5,3.43951]
[1722237528142,2.59061716,3380.8,3380.5,3.43951]
[1722237528420,1.54847958,3380.6,3380.5,3.43951]
[1722237528893,1.85805918,3380.8,3380.5,3.43951]
[1722237529095,1.91726116,3380.9,3380.5,3.43951]
[1722237529280,0.65634312,3380.8,3380.5,3.43951]
[1722237530110,1.91726116,3380.9,3380.5,3.43951]
[1722237530332,1.85805918,3380.8,3380.5,2.36651]
[1722237530536,1.85805918,3380.8,3380.7,1.073]
[1722237530719,1.85805918,3380.9,3380.7,1.073]
[1722237531178,1.85833735,3380.9,3380.7,1.073]
[1722237531835,1.85827219,3380.9,3380.7,1.073]
[1722237533852,1.8583291,3380.9,3380.7,1.073]
[1722237534055,1.8583291,3380.9,3380.7,3.43936]
[1722237534201,1.8583291,3381.0,3380.7,3.43936]
[1722237534401,2.28,3381.1,3380.9,1.073]
[1722237534649,2.96139328,3381.1,3380.9,1.073]
[1722237534858,5.32751328,3381.1,3380.7,1.073]
[1722237535056,1.85822557,3380.9,3380.7,1.073]
[1722237535219,1.85822557,3380.8,3380.7,1.073]
[1722237536861,1.85822557,3380.8,3380.5,2.36644]
[1722237537407,1.85822557,3380.8,3380.4,7.43]
[1722237537645,2.36616,3381.0,3380.4,7.43]
[1722237537964,1.5484863,3380.5,3380.4,9.79654]
[1722237539028,1.85818357,3380.8,3380.4,9.79654]
[1722237539225,1.54823351,3380.5,3380.4,9.79654]
[1722237539553,1.54813745,3380.5,3380.4,7.43]
[1722237539705,0.34059024,3380.5,3379.8,26.91]
[1722237539907,1.54893538,3380.1,3379.9,2.36689]
[1722237540156,1.54893538,3380.1,3379.9,3.43989]
[1722237540743,1.54912315,3380.1,3379.9,3.43989]
[1722237541370,1.54904364,3380.1,3379.9,3.43989]
[1722237541861,1.54904364,3380.1,3380.0,2.36686]
[1722237542447,1.54904364,3380.2,3380.0,2.36686]
[1722237542774,1.54904364,3380.2,3380.1,1.073]
[1722237542958,1.85885236,3380.5,3380.1,3.43979]
[1722237543154,1.54889926,3380.2,3380.1,3.43979]
[1722237543372,1.54889926,3380.2,3379.9,1.073]
[1722237543597,1.548514,3380.2,3379.9,1.073]
[1722237544095,1.548514,3380.2,3380.1,1.073]
[1722237545659,1.548514,3380.4,3380.3,2.36665]
[1722237545993,1.548514,3380.5,3380.4,2.36658]
[1722237546208,1.548514,3380.6,3380.5,2.36651]
[1722237546341,1.54846974,3380.6,3380.5,2.36651]
[1722237546743,1.54846974,3380.7,3380.4,3.43957]
[1722237546996,1.54846974,3380.7,3380.4,1.073]
[1722237547197,2.09846974,3380.6,3380.4,1.073]
[1722237548085,2.09846974,3380.6,3380.0,2.3668]
[1722237548281,1.54846974,3380.4,3380.0,2.3668]
[1722237548490,1.54846974,3380.4,3380.0,3.4398]
[1722237548690,0.55,3380.3,3380.0,3.4398]
[1722237548868,2.09846974,3380.3,3380.0,3.4398]
[1722237549471,0.55,3380.3,3380.0,3.4398]
[1722237549691,1.54831009,3380.3,3380.0,3.4398]
[1722237549900,0.55,3380.2,3380.0,2.3668]
[1722237550101,0.55,3380.2,3380.1,1.073]
[1722237550505,0.55,3380.2,3380.1,3.43979]
[1722237550670,1.54834409,3380.5,3380.1,5.80507]
[1722237550875,1.54834409,3380.6,3380.4,1.073]
[1722237551091,1.54834409,3380.6,3380.3,2.36662]
[1722237551092,0.55,3380.5,3380.3,2.36662]
[1722237554600,0.55,3380.5,3380.4,2.36658]
[1722237554986,0.55,3380.6,3380.4,2.36658]
[1722237555187,2.09732977,3380.6,3380.4,2.36658]
[1722237555794,2.09683491,3380.6,3380.4,2.36658]
[1722237556297,2.09682917,3380.6,3380.4,2.36658]
[1722237556483,2.09682917,3380.6,3380.2,2.36668]
[1722237557305,2.09682917,3380.6,3380.3,2.36664]
[1722237557815,1.54682917,3380.5,3380.2,2.36671]
[1722237557971,0.55,3380.4,3380.2,2.36671]
[1722237558176,4.50222917,3380.4,3379.9,7.43]
[1722237558403,1.54682917,3380.3,3379.9,7.43]
[1722237558605,0.55,3380.2,3379.9,7.43]
[1722237558871,2.09682917,3380.2,3379.9,7.43]
[1722237559106,2.09682917,3380.1,3379.9,7.43]
[1722237559309,0.55,3380.3,3379.9,7.43]
[1722237559515,1.54772208,3380.1,3379.9,7.43]
[1722237559711,0.55,3380.0,3379.9,7.43]
[1722237560208,2.09772208,3380.0,3379.9,7.43]
[1722237560374,1.54772208,3380.0,3379.9,7.43]
[1722237560575,2.09772208,3380.0,3379.9,7.43]
[1722237561489,2.09772208,3380.0,3379.7,2.36702]
[1722237561690,0.55,3379.9,3379.7,2.36702]
[1722237562780,1.54774312,3380.0,3379.8,2.367]
[1722237563001,0.55,3379.9,3379.8,2.367]
[1722237563228,1.54774987,3380.1,3379.8,2.367]
[1722237563490,0.55,3380.0,3379.8,2.367]
[1722237563918,0.55,3380.0,3379.9,2.36693]
[1722237564413,0.55,3380.0,3379.8,2.36698]
[1722237564414,0.55,3380.1,3380.0,2.36686]
[1722237564943,2.09774987,3380.3,3380.0,4.73366]
[1722237565081,2.09771833,3380.3,3380.0,2.3668]
[1722237565280,2.09771833,3380.3,3380.1,2.36679]
[1722237565598,2.09771833,3380.3,3380.2,2.36672]
[1722237565799,0.55,3380.3,3380.2,2.36672]
[1722237566176,2.09789149,3380.3,3380.2,2.36672]
[1722237566378,0.55,3380.3,3380.2,4.73344]
[1722237566981,0.55,3380.3,3380.2,2.36672]
[1722237569096,2.09710174,3380.4,3380.3,2.36661]
[1722237569500,2.09710174,3380.4,3380.1,2.36673]
[1722237569706,1.54710174,3380.3,3380.1,2.36673]
[1722237569893,0.55,3380.4,3379.9,2.36691]
[1722237569894,2.09710174,3380.2,3379.9,2.36687]
[1722237570095,1.54710174,3380.1,3379.9,2.36687]
[1722237570344,1.54710174,3380.2,3379.9,2.36687]
[1722237571102,2.89440198,3380.1,3379.4,0.1203452]
[1722237571435,1.54715092,3379.5,3379.4,0.1203452]
[1722237571639,0.55,3379.5,3379.4,0.1203452]
[1722237572092,0.55,3379.6,3379.4,0.1203452]
[1722237572290,1.85574996,3379.7,3379.4,0.1203452]
[1722237572533,0.55,3379.6,3379.4,0.1203452]
[1722237572887,2.40505571,3379.7,3379.4,0.1203452]
[1722237573522,1.54521637,3379.5,3379.4,0.1203452]
[1722237573837,2.09521637,3379.5,3379.4,0.1203452]
[1722237573991,0.55,3379.5,3379.4,0.1203452]
[1722237574194,2.09521637,3379.5,3379.4,0.1203452]
[1722237574394,4.87216378,3379.5,3379.4,0.1203452]
[1722237574595,3.32694741,3379.5,3379.4,0.1203452]
[1722237575537,3.38614939,3379.5,3379.4,0.1203452]
[1722237575694,4.87094985,3379.5,3379.4,0.1203452]
[1722237577903,4.47000244,3379.5,3379.4,0.1203452]
[1722237578112,0.55,3379.5,3379.4,0.1203452]
[1722237578329,1.54400244,3379.6,3379.4,0.1203452]
[1722237578525,0.55,3379.5,3379.4,0.1203452]
[1722237578911,1.54291926,3379.7,3379.5,2.36716]
[1722237579119,1.54291926,3380.0,3379.5,2.36716]
[1722237579335,1.54291926,3380.1,3379.7,2.36701]
[1722237579506,1.54291926,3380.2,3379.7,2.36701]
[1722237579699,1.54291926,3380.3,3379.7,2.36701]
[1722237579943,1.54291926,3380.2,3379.7,2.36701]
[1722237580305,1.54291926,3380.2,3379.5,2.36716]
[1722237580516,1.54291926,3380.1,3379.6,2.36714]
[1722237580715,1.54291926,3380.0,3379.6,2.36714]
[1722237580917,0.55,3379.9,3379.6,2.36714]
[1722237581100,0.55,3379.9,3379.8,2.367]
[1722237581303,1.54291926,3380.3,3379.4,2.4875952]
[1722237581540,1.54291926,3380.5,3380.0,2.36681]
[1722237581722,1.54350476,3380.5,3380.1,2.36679]
[1722237581923,1.54350476,3380.7,3380.1,2.36679]
[1722237582337,1.54354234,3380.6,3380.0,2.36681]
[1722237582633,1.54354234,3380.5,3379.9,2.36692]
[1722237582936,1.54354234,3380.5,3380.0,2.36685]
[1722237583110,0.55,3380.4,3380.0,2.36685]
[1722237583305,0.55,3380.5,3380.0,2.36685]
[1722237583700,2.15274432,3380.5,3379.8,9.797]
[1722237584011,0.55,3380.5,3379.9,2.36692]
[1722237585516,2.09366427,3380.5,3379.9,2.36692]
[1722237585715,0.05920198,3380.4,3379.8,7.43]
[1722237585917,0.55,3380.3,3379.8,7.43]
[1722237586239,0.55,3380.3,3379.9,2.3669]
[1722237586407,0.55,3380.4,3379.9,2.3669]
[1722237588306,0.55,3380.4,3380.0,2.36686]
[1722237588829,0.55,3380.4,3380.1,2.36679]
[1722237589232,0.55,3380.5,3380.1,2.36679]
[1722237590759,2.09381474,3380.5,3380.1,2.36679]
[1722237591146,0.55,3380.5,3380.1,2.36679]
[1722237591350,5.548652,3380.9,3379.9,2.36692]
[1722237591351,1.54457889,3380.9,3380.4,2.36658]
[1722237591522,4.27929467,3381.3,3380.4,2.36658]
[1722237591523,1.54457889,3381.2,3380.4,2.36658]
[1722237591721,1.54482631,3381.0,3380.3,2.36664]
[1722237591931,6.64559158,3381.3,3380.0,3.0]
[1722237591932,1.54482631,3381.1,3380.0,3.0]
[1722237592136,1.54482631,3381.2,3380.0,3.05915501]
[1722237592338,2.4258,3381.3,3380.8,2.36629]
[1722237592339,3.97062631,3381.3,3380.8,2.36629]
[1722237592670,0.39706263,3381.2,3380.9,2.36622]
[1722237592944,3.97062631,3381.3,3380.9,2.36622]
[1722237593146,2.4258,3381.3,3380.9,2.36622]
[1722237593340,1.54482631,3381.4,3380.9,2.36622]
[1722237593937,1.54391212,3381.4,3380.7,2.4859]
[1722237594251,4.23759455,3381.7,3381.2,2.36597]
[1722237594252,1.54406344,3381.7,3381.2,2.36597]
[1722237594439,1.54406344,3381.8,3381.2,2.36597]
[1722237594752,1.54406344,3381.9,3381.2,2.36597]
[1722237595127,1.54406344,3381.8,3380.8,2.36628]
[1722237595333,1.54406344,3381.5,3380.8,2.36628]
[1722237595660,1.54406344,3381.6,3381.1,2.577]
[1722237595815,2.16168882,3382.3,3381.6,2.36567]
[1722237595816,1.54406344,3382.3,3381.6,2.36567]
[1722237596247,1.00712914,3382.3,3381.6,2.36567]
[1722237596451,3.6531672,3382.4,3381.6,2.36567]
[1722237596753,3.59396522,3382.4,3381.7,2.36566]
[1722237597554,0.55,3382.3,3381.6,2.36574]
[1722237597752,0.87672481,3382.2,3381.7,2.36565]
[1722237597964,0.55,3382.1,3381.8,2.36558]
[1722237598333,0.55,3382.3,3381.7,2.36565]
[1722237598519,0.55,3382.3,3382.0,2.36546]
[1722237598716,1.19020881,3382.3,3382.0,2.36546]
[1722237599357,0.55,3382.3,3381.8,2.36559]
[1722237599529,0.55,3382.3,3382.1,2.36538]
[1722237599729,0.55,3382.3,3382.2,2.36532]
[1722237600939,0.55,3382.3,3382.1,2.36538]
[1722237601144,0.55,3382.4,3382.2,2.36527]
[1722237601348,0.55,3382.4,3382.0,2.36544]
[1722237601349,0.55,3382.4,3382.3,2.36525]
[1722237601560,0.55,3382.4,3382.1,2.36537]
[1722237601861,0.55,3382.7,3382.1,2.36537]
[1722237602071,0.517824,3382.6,3382.1,2.36537]
[1722237602283,0.55,3382.5,3382.1,2.36537]
[1722237603124,0.55,3382.5,3382.2,2.36532]
[1722237603758,0.55,3382.5,3382.3,2.36525]
[1722237603934,0.55,3382.8,3382.3,2.36525]
[1722237604134,1.13134,3382.8,3382.3,2.36525]
[1722237604324,1.13134,3382.8,3382.1,2.36534]
[1722237604529,1.13134,3382.8,3382.2,2.36527]
[1722237607963,0.55,3382.8,3382.1,2.36534]
[1722237608136,2.9149,3382.8,3381.9,9.79546]
[1722237609152,2.9149,3382.8,3381.9,7.43]
[1722237609153,2.36513,3382.5,3381.9,7.43]
[1722237609363,2.2999,3382.3,3381.9,7.43]
[1722237609561,4.6652,3382.3,3381.9,7.43]
[1722237609765,3.60920198,3382.2,3381.9,7.43]
[1722237609965,3.60920198,3382.2,3381.2,7.43]
[1722237609966,2.2999,3381.8,3381.2,7.43]
[1722237610292,2.91567,3381.7,3380.8,7.43]
[1722237610593,2.36602,3381.2,3380.8,7.43]
[1722237610732,2.36631,3380.8,3380.5,12.38]
[1722237610938,2.36616,3381.0,3380.0,9.79686]
[1722237611248,0.60920198,3380.9,3380.1,2.36678]
[1722237611472,0.55,3380.9,3380.1,2.36678]
[1722237611685,0.55,3380.9,3380.3,2.3666]
[1722237612009,0.55,3381.0,3380.3,2.3666]
[1722237612356,0.55,3381.0,3380.4,2.36656]
[1722237612665,1.080853,3381.0,3380.2,2.36668]
[1722237614458,3.447033,3381.0,3380.2,2.36668]
[1722237614655,3.447033,3381.0,3380.1,2.36678]
[1722237614860,3.447033,3381.0,3379.6,12.38]
[1722237614861,2.2913,3380.7,3379.7,5.02286026]
[1722237615206,2.2709,3379.8,3379.4,5.14320546]
[1722237615336,0.05920198,3379.7,3379.4,0.1203452]
[1722237615536,2.36721,3379.5,3379.4,0.1203452]
[1722237616003,4.73442,3379.5,3379.4,0.1203452]
[1722237616206,4.79362198,3379.5,3379.4,0.1203452]
[1722237616413,11.8152726,3379.5,3379.4,0.1203452]
[1722237616731,7.10205,3379.3,3379.2,0.00176756]
[1722237617070,7.65205,3379.3,3379.2,0.00176756]
[1722237617309,10.65205,3379.3,3379.2,0.00176756]
[1722237617473,12.76281048,3379.3,3379.2,0.00176756]
[1722237618890,15.33981048,3379.3,3379.2,0.00176756]
[1722237620725,17.70716048,3379.3,3379.2,0.00176756]
[1722237620907,2.36828,3378.0,3377.8,5.02286026]
[1722237621110,2.36823,3378.1,3377.2,5.02286026]
[1722237621324,3.127,3378.3,3377.2,5.02286026]
[1722237621499,2.36831,3378.0,3377.2,5.02286026]
[1722237621702,0.55,3377.9,3377.2,5.02286026]
[1722237621990,3.127,3377.9,3376.8,17.40286026]
[1722237622231,2.36895,3377.1,3376.8,5.02286026]
[1722237622468,2.36895,3377.1,3376.4,12.38]
[1722237623023,2.36876,3377.3,3376.4,12.38]
[1722237623224,2.36909,3376.9,3376.3,5.02286026]
[1722237623641,0.55,3376.8,3376.3,5.02286026]
[1722237624085,0.55,3377.1,3376.3,5.02286026]
[1722237624433,2.36905,3376.9,3376.3,5.02286026]
[1722237624637,4.72053,3377.2,3376.3,5.02286026]
[1722237624638,0.55,3376.8,3376.3,5.02286026]
[1722237624840,0.55,3376.8,3376.3,7.39231026]
[1722237625061,0.55,3377.1,3376.3,5.02286026]
[1722237625299,0.55,3377.1,3376.4,2.36936]
[1722237625453,0.55,3377.1,3376.4,2.36938]
[1722237625788,2.36884,3377.2,3376.3,7.39230026]
[1722237626035,0.55,3377.3,3376.8,2.36905]
[1722237626308,2.4067,3377.9,3377.1,2.36884]
[1722237626524,2.4067,3377.9,3376.9,7.39187026]
[1722237626680,4.77503,3377.9,3377.0,2.36895]
[1722237626883,2.4067,3377.9,3377.2,2.36882]
[1722237627102,0.30998386,3378.2,3377.3,2.36875]
[1722237627264,0.30998386,3378.2,3376.9,5.02286026]
[1722237627265,0.30998386,3378.2,3377.5,2.36855]
[1722237627462,0.30998386,3378.2,3376.9,5.02286026]
[1722237627812,0.30998386,3378.2,3377.6,2.36854]
[1722237628008,0.30998386,3378.2,3377.5,2.36856]
[1722237628207,0.30998386,3378.2,3377.8,2.36837]
[1722237628591,0.30998386,3378.2,3377.9,2.36832]
[1722237628792,0.30998386,3378.2,3377.8,2.36838]
[1722237629910,2.3516,3379.0,3378.0,2.36825]
[1722237629911,4.71921,3379.0,3378.0,2.36825]
[1722237630069,4.71921,3379.0,3377.2,2.36878]
[1722237630070,0.30997303,3378.6,3377.9,5.02286026]
[1722237630271,0.30997303,3378.6,3377.9,7.39118026]
[1722237631298,0.55,3378.5,3378.0,2.36826]
[1722237631501,0.30997303,3378.6,3378.3,2.36804]
[1722237631706,0.30997303,3378.6,3378.3,2.36803]
[1722237631880,2.3677,3378.8,3377.9,7.39117026]